{"text_format":"3","workbook":"xlsx","n_sheets":1,"sheets":["Krvni tlak in glukoza"],"not_rendered":{"defined_names":9},"read":"whole","date_system":"1900"}

{"sheet":"Krvni tlak in glukoza","index":0,"n_rows":13,"n_cols":11,"rows_kept":13,"merged":[[0,1,4,3],[0,4,0,9],[1,4,1,6],[1,7,1,9],[3,7,4,7],[3,8,4,8],[3,9,4,9]]}
[null,"Sledilnik krvnega tlaka\nin glukoze",null,null,"Prilagodite vrednosti merila v spodnjih celicah E2–J5."]
[{"$nulls":4},"KRVNI TLAK",null,null,"LESTVICA VREDNOSTI GLUKOZE"]
[{"$nulls":4},120,"SISTOLIČNI",140,70,100,150]
[{"$nulls":4},80,"DIASTOLIČNI",90,"NIZKA","NORMALNA","VISOKA"]
[{"$nulls":4},"CILJNI TLAK",null,"POKLIČI ZDRAVNIKA"]
[null,"Datum","Ura","Dogodek","Sistoični","Diastolični","Srčni utrip","Glukoza","Raven","Stanje","Opombe"]
[null,{"$f":"TODAY()","v":"2018-06-28"},"06:00:00","Prebujanje",129,79,72,55,{"$f":"KrvniTlakInGlukoza[[#This Row],[Glukoza]]","v":55},{"$f":"IFERROR(IF(KrvniTlakInGlukoza[[#This Row],[Raven]]=0,\"\",IF(KrvniTlakInGlukoza[[#This Row],[Raven]]<=GLow,\"NIZKA\",IF(AND(KrvniTlakInGlukoza[[#This Row],[Raven]]>GLow,KrvniTlakInGlukoza[[#This Row],[Raven]]<GHigh),\"NORMALNA\",\"VISOKA\"))), \"\")","v":"NIZKA"}]
[null,{"$f":"TODAY()","v":"2018-06-28"},"07:00:00","Pred obrokom",120,80,74,70,{"$f":"KrvniTlakInGlukoza[[#This Row],[Glukoza]]","v":70},{"$f":"IFERROR(IF(KrvniTlakInGlukoza[[#This Row],[Raven]]=0,\"\",IF(KrvniTlakInGlukoza[[#This Row],[Raven]]<=GLow,\"NIZKA\",IF(AND(KrvniTlakInGlukoza[[#This Row],[Raven]]>GLow,KrvniTlakInGlukoza[[#This Row],[Raven]]<GHigh),\"NORMALNA\",\"VISOKA\"))), \"\")","v":"NIZKA"}]
[null,"2018-06-28","09:00:00","Po obroku",133,80,75,75,{"$f":"KrvniTlakInGlukoza[[#This Row],[Glukoza]]","v":75},{"$f":"IFERROR(IF(KrvniTlakInGlukoza[[#This Row],[Raven]]=0,\"\",IF(KrvniTlakInGlukoza[[#This Row],[Raven]]<=GLow,\"NIZKA\",IF(AND(KrvniTlakInGlukoza[[#This Row],[Raven]]>GLow,KrvniTlakInGlukoza[[#This Row],[Raven]]<GHigh),\"NORMALNA\",\"VISOKA\"))), \"\")","v":"NORMALNA"}]
[null,"2018-06-28","10:00:00","Samo KT",143,91,75,190,{"$f":"KrvniTlakInGlukoza[[#This Row],[Glukoza]]","v":190},{"$f":"IFERROR(IF(KrvniTlakInGlukoza[[#This Row],[Raven]]=0,\"\",IF(KrvniTlakInGlukoza[[#This Row],[Raven]]<=GLow,\"NIZKA\",IF(AND(KrvniTlakInGlukoza[[#This Row],[Raven]]>GLow,KrvniTlakInGlukoza[[#This Row],[Raven]]<GHigh),\"NORMALNA\",\"VISOKA\"))), \"\")","v":"VISOKA"}]
[null,"2018-06-28","12:00:00","Pred obrokom",141,84,70,140,{"$f":"KrvniTlakInGlukoza[[#This Row],[Glukoza]]","v":140},{"$f":"IFERROR(IF(KrvniTlakInGlukoza[[#This Row],[Raven]]=0,\"\",IF(KrvniTlakInGlukoza[[#This Row],[Raven]]<=GLow,\"NIZKA\",IF(AND(KrvniTlakInGlukoza[[#This Row],[Raven]]>GLow,KrvniTlakInGlukoza[[#This Row],[Raven]]<GHigh),\"NORMALNA\",\"VISOKA\"))), \"\")","v":"NORMALNA"}]
[null,{"$f":"TODAY()","v":"2018-06-28"},"15:00:00","Po obroku",132,80,68,90,{"$f":"KrvniTlakInGlukoza[[#This Row],[Glukoza]]","v":90},{"$f":"IFERROR(IF(KrvniTlakInGlukoza[[#This Row],[Raven]]=0,\"\",IF(KrvniTlakInGlukoza[[#This Row],[Raven]]<=GLow,\"NIZKA\",IF(AND(KrvniTlakInGlukoza[[#This Row],[Raven]]>GLow,KrvniTlakInGlukoza[[#This Row],[Raven]]<GHigh),\"NORMALNA\",\"VISOKA\"))), \"\")","v":"NORMALNA"},"Zdravilo za KT sem zaužil/-a pred obrokom."]
[null,"Povprečje",null,null,{"$f":"SUBTOTAL(101,KrvniTlakInGlukoza[Sistoični])","v":133},{"$f":"SUBTOTAL(101,KrvniTlakInGlukoza[Diastolični])","v":{"v":82.33333333333333,"d":"82"}},{"$f":"SUBTOTAL(101,KrvniTlakInGlukoza[Srčni utrip])","v":{"v":72.33333333333333,"d":"72"}},{"$f":"SUBTOTAL(101,KrvniTlakInGlukoza[Glukoza])","v":{"v":103.33333333333333,"d":"103"}}]